bitfinex/quotes_BTCUSD_20241119
["timestamp","ask_amount","ask_price","bid_price","bid_amount"]
[1732059708172,0.10906255,92179.0,92167.0,0.0826]
[1732059708380,0.01,92183.0,92167.0,0.0826]
[1732059708594,0.10906255,92182.0,92167.0,0.0826]
[1732059710389,0.04310218,92186.0,92167.0,0.0826]
[1732059710690,0.10906255,92186.0,92167.0,0.0826]
[1732059711314,0.01,92195.0,92170.0,0.0826]
[1732059711523,0.04483544,92194.0,92172.0,0.0826]
[1732059711738,0.04483544,92194.0,92173.0,0.0456]
[1732059711959,0.01,92196.0,92174.0,0.0826]
[1732059712440,0.108467,92194.0,92174.0,0.0826]
[1732059712655,0.01,92196.0,92174.0,0.0826]
[1732059712872,0.10906255,92187.0,92174.0,0.0826]
[1732059713916,0.10906255,92187.0,92167.0,0.1]
[1732059713917,0.108482,92181.0,92167.0,0.0826]
[1732059714120,0.10906255,92180.0,92167.0,0.0826]
[1732059714539,0.21754555,92180.0,92167.0,0.0826]
[1732059714964,0.10906255,92180.0,92167.0,0.0826]
[1732059715168,0.108486,92178.0,92151.0,0.1282]
[1732059715379,0.13206255,92177.0,92152.0,0.1]
[1732059715854,0.13206255,92177.0,92152.0,0.1826]
[1732059716068,0.12706255,92177.0,92152.0,0.1826]
[1732059716464,0.023,92175.0,92152.0,0.1826]
[1732059716680,0.10906255,92174.0,92152.0,0.1826]
[1732059716910,0.108493,92172.0,92152.0,0.1826]
[1732059717122,0.433947,92177.0,92152.0,0.0826]
[1732059717123,0.01,92163.0,92152.0,0.0826]
[1732059717406,0.10906255,92162.0,92152.0,0.0826]
[1732059718279,0.01,92177.0,92152.0,0.0826]
[1732059718496,0.10906255,92172.0,92153.0,0.0456]
[1732059721256,0.10906255,92172.0,92153.0,0.18967796]
[1732059721686,0.10906255,92172.0,92153.0,0.0456]
[1732059722320,0.10906255,92172.0,92153.0,0.19010457]
[1732059722836,0.023,92169.0,92153.0,0.19010457]
[1732059723037,0.10906255,92168.0,92153.0,0.0456]
[1732059723685,0.023,92167.0,92153.0,0.0456]
[1732059723896,0.10906255,92166.0,92153.0,0.0456]
[1732059725465,0.21756255,92166.0,92153.0,0.0456]
[1732059725677,0.10906255,92166.0,92153.0,0.0456]
[1732059726341,0.108503,92163.0,92153.0,0.0456]
[1732059726542,0.13206255,92162.0,92153.0,0.0456]
[1732059727172,0.24056755,92162.0,92153.0,0.0456]
[1732059727703,0.13206255,92162.0,92153.0,0.0456]
[1732059727895,0.108505,92161.0,92153.0,0.0456]
[1732059728111,0.13206255,92160.0,92153.0,0.0456]
[1732059728325,0.24056955,92160.0,92153.0,0.0456]
[1732059728785,0.13206255,92160.0,92150.0,0.0017074]
[1732059728998,0.108511,92156.0,92150.0,0.0017074]
[1732059729201,0.10906255,92155.0,92150.0,0.0017074]
[1732059730515,0.10906255,92155.0,92153.0,0.001707]
[1732059730724,0.023,92154.0,92153.0,0.001707]
[1732059730942,0.13206255,92154.0,92153.0,0.001707]
[1732059731862,0.24057655,92154.0,92153.0,0.001707]
[1732059732081,0.13206255,92154.0,92153.0,0.001707]
[1732059735541,0.13206255,92154.0,92153.0,0.133607]
[1732059735542,0.10906255,92154.0,92153.0,0.133607]
[1732059735996,0.04368081,92157.0,92153.0,0.133607]
[1732059736197,0.04427918,92171.0,92153.0,0.133607]
[1732059736415,0.10906255,92170.0,92153.0,0.133607]
[1732059736654,0.01,92169.0,92153.0,0.133607]
[1732059736858,0.10906255,92168.0,92153.0,0.133607]
[1732059737502,0.023,92167.0,92153.0,0.133607]
[1732059737714,0.10906255,92166.0,92153.0,0.133607]
[1732059738853,0.04491714,92173.0,92154.0,0.083]
[1732059739081,0.10906255,92172.0,92155.0,0.0489]
[1732059739296,0.10906255,92172.0,92158.0,0.083]
[1732059741118,0.0008535,92177.0,92159.0,0.0489]
[1732059741358,0.0008535,92177.0,92161.0,0.083]
[1732059741359,0.10991605,92177.0,92161.0,0.083]
[1732059741575,0.10991605,92177.0,92162.0,0.0489]
[1732059741807,0.10991605,92177.0,92163.0,0.083]
[1732059742022,0.10991605,92177.0,92164.0,0.0489]
[1732059742234,0.10991605,92177.0,92165.0,0.083]
[1732059742946,0.10991605,92177.0,92155.0,0.14442712]
[1732059742947,0.0008535,92177.0,92167.0,0.083]
[1732059748412,0.0008535,92177.0,92170.0,0.1444006]
[1732059748628,0.0008535,92177.0,92174.0,0.1444006]
[1732059748855,0.0008535,92177.0,92175.0,0.1239]
[1732059749078,0.0008535,92177.0,92176.0,0.1444006]
[1732059749325,0.0008535,92177.0,92175.0,0.36444682]
[1732059749534,0.0008535,92177.0,92164.0,0.01]
[1732059749535,0.0008535,92177.0,92176.0,0.31848157]
[1732059749743,0.0008535,92177.0,92176.0,0.1239]
[1732059749967,0.0008535,92177.0,92176.0,0.12606948]
[1732059750176,0.0008535,92177.0,92176.0,0.31847579]
[1732059750429,0.0008535,92177.0,92176.0,0.31630631]
[1732059750704,0.0008535,92177.0,92176.0,0.1239]
[1732059751110,0.0008535,92177.0,92176.0,0.12606948]
[1732059752626,0.0008535,92177.0,92176.0,0.27031458]
[1732059752811,0.0008535,92177.0,92176.0,0.2681451]
[1732059753337,0.0008535,92177.0,92176.0,0.1239]
[1732059753528,0.0008535,92177.0,92176.0,0.26812339]
[1732059754641,0.0008535,92177.0,92176.0,0.1239]
[1732059754865,0.0008535,92177.0,92176.0,0.2702642]
[1732059755087,0.0008535,92177.0,92176.0,0.26809473]
[1732059755531,0.0008535,92177.0,92176.0,0.36809473]
[1732059755745,0.0008535,92177.0,92176.0,0.2239]
[1732059755964,0.0008535,92177.0,92176.0,0.26699871]
[1732059759085,0.0008535,92177.0,92176.0,0.41104126]
[1732059759696,0.0008535,92177.0,92176.0,0.26699871]
[1732059762987,0.0008535,92177.0,92176.0,0.2239]
[1732059763464,0.0008536,92230.0,92204.0,0.1234]
[1732059763711,0.01,92228.0,92204.0,0.1234]
[1732059765272,0.02,92228.0,92204.0,0.0771]
[1732059767261,0.01,92224.0,92204.0,0.0771]
[1732059769237,0.10906255,92212.0,92197.0,0.0771]
[1732059770625,0.11906255,92212.0,92191.0,0.0771]
[1732059771731,0.023,92211.0,92191.0,0.0771]
[1732059771949,0.023,92209.0,92176.0,0.001707]
[1732059772164,0.10906255,92208.0,92183.0,0.0771]
[1732059772380,0.023,92207.0,92183.0,0.0771]
[1732059772605,0.10906255,92206.0,92183.0,0.0771]
[1732059773065,0.108453,92205.0,92183.0,0.0771]
[1732059773280,0.216903,92207.0,92183.0,0.0771]
[1732059773281,0.023,92203.0,92183.0,0.0771]
[1732059773527,0.0782,92201.0,92183.0,0.0771]
[1732059773743,0.10906255,92200.0,92183.0,0.0771]
[1732059778360,0.10906255,92200.0,92183.0,0.0788064]
[1732059780899,0.10906255,92200.0,92170.0,0.1]
[1732059781106,0.10906255,92200.0,92171.0,0.1]
[1732059782637,0.10906255,92200.0,92169.0,0.04349235]
[1732059782885,0.10906255,92200.0,92164.0,0.29188202]
[1732059783104,0.10906255,92200.0,92163.0,0.01]
[1732059783105,0.10906255,92200.0,92169.0,0.19188202]
[1732059783322,0.023,92212.0,92171.0,0.1]
[1732059783533,0.0008532,92213.0,92180.0,0.01]
[1732059783748,0.0008532,92213.0,92182.0,0.1]
[1732059783971,0.0008532,92213.0,92184.0,0.2296]
[1732059784245,0.0008532,92213.0,92180.0,0.20188202]
[1732059784246,0.0008532,92213.0,92187.0,0.1296]
[1732059784467,0.10991575,92213.0,92189.0,0.082]
[1732059784676,0.10991575,92213.0,92190.0,0.0476]
[1732059786684,0.01,92207.0,92183.0,0.082]
[1732059786924,0.13206255,92206.0,92183.0,0.082]
[1732059789915,0.1274,92212.0,92183.0,0.22808243]
[1732059790151,0.10906255,92211.0,92184.0,0.18997483]
[1732059790361,0.10906255,92211.0,92185.0,0.14437483]
[1732059790983,0.10906255,92211.0,92189.0,0.14437483]
[1732059791453,0.10906255,92211.0,92190.0,0.14437483]
[1732059791664,0.10906255,92211.0,92192.0,0.14437483]
[1732059791907,0.10906255,92211.0,92193.0,0.14437483]
[1732059792347,0.10906255,92211.0,92194.0,0.14437483]
[1732059792557,0.10906255,92211.0,92195.0,0.14437483]
[1732059793011,0.0008532,92213.0,92196.0,0.14654397]
[1732059793235,0.10991575,92213.0,92197.0,0.18997483]
[1732059793464,0.10991575,92213.0,92199.0,0.14437483]
[1732059795823,0.10991575,92213.0,92200.0,0.14437483]
[1732059796210,0.10991575,92213.0,92199.0,0.14437483]
[1732059797608,0.10991575,92213.0,92201.0,0.14437483]
[1732059798055,0.10991575,92213.0,92199.0,0.14437483]
[1732059798465,0.10991575,92213.0,92198.0,0.14437483]
[1732059798667,0.10991575,92213.0,92199.0,0.14437483]
[1732059799090,0.10991575,92213.0,92198.0,0.14437483]
[1732059799536,0.10991575,92213.0,92198.0,0.14440512]
[1732059799753,0.10991575,92213.0,92200.0,0.14440512]
[1732059800173,0.10991575,92213.0,92198.0,0.14440512]
[1732059800406,0.10991575,92213.0,92199.0,0.14440512]
[1732059800627,0.10991575,92213.0,92202.0,0.14440512]
[1732059800840,0.10991575,92213.0,92199.0,0.14440512]
[1732059801044,0.10991575,92213.0,92200.0,0.14440512]
[1732059801243,0.10991575,92213.0,92199.0,0.14440512]
[1732059801448,0.10991575,92213.0,92198.0,0.14440512]
[1732059804537,0.10991575,92213.0,92198.0,0.14438215]
[1732059804763,0.10991575,92213.0,92199.0,0.14438215]
[1732059805212,0.10991575,92213.0,92197.0,0.23810953]
[1732059805213,0.10991575,92213.0,92198.0,0.14438215]
[1732059805434,0.10991575,92213.0,92202.0,0.14438215]
[1732059805649,0.10991575,92213.0,92199.0,0.14438215]
[1732059805873,0.10991575,92213.0,92204.0,0.14438215]
[1732059806121,0.10991575,92213.0,92202.0,0.14438215]
[1732059806346,0.10991575,92213.0,92200.0,0.14438215]
[1732059806574,0.10991575,92213.0,92202.0,0.14438215]
[1732059806778,0.0008532,92213.0,92200.0,0.14438215]
[1732059806991,0.0008532,92213.0,92205.0,0.14438215]
[1732059807251,0.0008532,92213.0,92202.0,0.14438215]
[1732059807447,0.0008532,92213.0,92203.0,0.00216884]
[1732059807667,0.0008532,92213.0,92203.0,0.14438215]
[1732059808309,0.0008532,92213.0,92202.0,0.14438215]
[1732059808775,0.0008532,92213.0,92201.0,0.22718215]
[1732059809210,0.0008532,92213.0,92203.0,0.14438215]
[1732059809434,0.0008532,92213.0,92204.0,0.14438215]
[1732059809644,0.0008532,92213.0,92201.0,0.22718215]
[1732059810076,0.0008532,92213.0,92202.0,0.14438215]
[1732059810285,0.0008532,92213.0,92201.0,0.22718215]
[1732059810702,0.0008532,92213.0,92204.0,0.14438215]
[1732059810910,0.0008532,92213.0,92201.0,0.0828]
[1732059810911,0.0008532,92213.0,92201.0,0.22718215]
[1732059811149,0.0008532,92213.0,92202.0,0.14438215]
[1732059811602,0.0008532,92213.0,92204.0,0.14438215]
[1732059812050,0.0008532,92213.0,92205.0,0.14438215]
[1732059812271,0.0008532,92213.0,92203.0,0.14438215]
[1732059812492,0.0008532,92213.0,92201.0,0.22718215]
[1732059812900,0.0008532,92213.0,92202.0,0.14438215]
[1732059813358,0.0008532,92213.0,92201.0,0.22718215]
[1732059814014,0.076,92212.0,92200.0,0.14438215]
[1732059814709,0.076,92212.0,92200.0,0.14420345]
[1732059814986,0.076,92212.0,92199.0,0.14420345]
[1732059815883,0.18506255,92212.0,92199.0,0.14420345]
[1732059816099,0.18506255,92212.0,92198.0,0.14420345]
[1732059816318,0.18506255,92212.0,92195.0,0.14420345]
[1732059816537,0.18506255,92212.0,92195.0,0.1]
[1732059817199,0.10906255,92211.0,92195.0,0.1]
[1732059817650,0.10906255,92211.0,92193.0,0.24420345]
[1732059817873,0.10906255,92211.0,92191.0,0.1]
[1732059818089,0.10906255,92211.0,92190.0,0.1]
[1732059818332,0.10906255,92211.0,92190.0,0.14420345]
[1732059818564,0.10906255,92211.0,92189.0,0.14420345]
[1732059818565,0.023,92210.0,92189.0,0.14420345]
[1732059818833,0.099,92208.0,92187.0,0.14420345]
[1732059819062,0.15726255,92207.0,92182.0,0.14420345]
[1732059819199,0.15726255,92207.0,92183.0,0.14591105]
[1732059819426,0.15726255,92207.0,92183.0,0.0017076]
[1732059819427,0.023,92206.0,92183.0,0.0017076]
[1732059819661,0.023,92204.0,92183.0,0.14601069]
[1732059819857,0.10906255,92203.0,92183.0,0.14601069]
[1732059821072,0.10906255,92203.0,92187.0,0.14430309]
[1732059821281,0.10906255,92203.0,92186.0,0.14430309]
[1732059821496,0.10906255,92203.0,92185.0,0.14430309]
[1732059821738,0.00084825,92204.0,92189.0,0.0462]
[1732059821950,0.00084825,92204.0,92198.0,0.14430309]
[1732059822634,0.00084825,92204.0,92199.0,0.14430309]
[1732059823078,0.00084825,92204.0,92198.0,0.14430309]
[1732059823520,0.00084825,92204.0,92199.0,0.14430309]
[1732059824622,0.00084825,92204.0,92199.0,0.14428796]
[1732059825712,0.00084825,92204.0,92200.0,0.14428796]
[1732059826448,0.00084825,92204.0,92201.0,0.0806]
[1732059828661,0.00088825,92204.0,92202.0,0.14434136]
[1732059829089,0.00088825,92204.0,92203.0,0.19245515]
[1732059829302,0.00088825,92204.0,92203.0,0.14436972]
[1732059829559,0.00088825,92204.0,92202.0,0.19245515]
[1732059831779,0.00088825,92204.0,92203.0,0.19245515]
[1732059831985,0.00088825,92204.0,92202.0,0.24056894]
[1732059832190,0.00088825,92204.0,92203.0,0.24056894]
[1732059832396,0.00088825,92204.0,92201.0,0.0806]
[1732059832829,0.00088825,92204.0,92202.0,0.2405808]
[1732059833038,0.00088825,92204.0,92201.0,0.0806]
[1732059833719,0.00088825,92204.0,92203.0,0.19244153]
[1732059834619,0.00088825,92204.0,92202.0,0.00216893]
[1732059834857,0.00088825,92204.0,92201.0,0.32115192]
[1732059835524,0.00088825,92204.0,92202.0,0.24055192]
[1732059835948,0.00088825,92204.0,92202.0,0.24056341]
[1732059836390,0.00088825,92204.0,92203.0,0.24056341]
[1732059836827,0.00088825,92204.0,92202.0,0.24056341]
[1732059837036,0.00088825,92204.0,92201.0,0.0806]
[1732059837272,0.00088825,92204.0,92202.0,0.00216893]
[1732059837485,0.00088825,92204.0,92203.0,0.2405331]
[1732059837966,0.00088825,92204.0,92203.0,0.2867331]
[1732059838181,0.00088825,92204.0,92203.0,0.0462]
[1732059840666,0.00088825,92204.0,92198.0,0.0462]
[1732059840892,0.00088825,92204.0,92203.0,0.24037106]
[1732059841118,0.00088825,92204.0,92203.0,0.19231318]
[1732059841563,0.00088825,92204.0,92202.0,0.19231318]
[1732059842695,0.00088825,92204.0,92203.0,0.19231318]
[1732059843366,0.00088825,92204.0,92202.0,0.24037106]
[1732059843592,0.00088825,92204.0,92203.0,0.19231382]
[1732059844288,0.00088825,92204.0,92201.0,0.24038786]
[1732059844684,0.00088825,92204.0,92203.0,0.19231221]
[1732059847204,0.00174235,92204.0,92203.0,0.19231221]
[1732059847433,0.00174235,92204.0,92197.0,0.1]
[1732059847646,0.00174235,92204.0,92196.0,0.28846543]
[1732059847899,0.00174235,92204.0,92200.0,0.0806]
[1732059849027,0.00174235,92204.0,92201.0,0.0021688]
[1732059850195,0.00174235,92204.0,92203.0,0.24045893]
[1732059850426,0.00174235,92204.0,92203.0,0.24046675]
[1732059853520,0.00174235,92204.0,92203.0,0.19242739]
[1732059854065,0.00174235,92204.0,92198.0,0.1]
[1732059854492,0.00174235,92204.0,92202.0,0.24051895]
[1732059855187,0.00174235,92204.0,92201.0,0.24051895]
[1732059855917,0.00174235,92204.0,92196.0,0.43484175]
[1732059856122,0.00174235,92204.0,92203.0,0.24051877]
[1732059856339,0.00174235,92204.0,92203.0,0.24050649]
[1732059856796,0.00174235,92204.0,92196.0,0.5439043]
[1732059857068,0.00174235,92204.0,92203.0,0.2333]
[1732059859598,0.00174235,92204.0,92201.0,0.28851732]
[1732059859817,0.00174235,92204.0,92202.0,0.19238483]
[1732059860024,0.00174235,92204.0,92202.0,0.19239813]
[1732059862927,0.00174235,92204.0,92201.0,0.19239813]
[1732059863838,0.00174235,92204.0,92203.0,0.14432047]
[1732059864284,0.00174235,92204.0,92203.0,0.19239813]
[1732059864510,0.00174235,92204.0,92202.0,0.24052093]
[1732059864779,0.00174235,92204.0,92202.0,0.24053023]
[1732059865007,0.00174235,92204.0,92203.0,0.1485]
[1732059865450,0.00174235,92204.0,92203.0,0.1]
[1732059866087,0.00174235,92204.0,92199.0,0.00216869]
[1732059866585,0.00174235,92204.0,92200.0,0.28851732]
[1732059866811,0.00174235,92204.0,92201.0,0.00216886]
[1732059867035,0.00174235,92204.0,92199.0,0.38851732]
[1732059867262,0.00174235,92204.0,92199.0,0.1]
[1732059867677,0.00174235,92204.0,92200.0,0.00216886]
[1732059867930,0.00174235,92204.0,92201.0,0.28851732]
[1732059868153,0.00174235,92204.0,92199.0,0.1]
[1732059868154,0.00174235,92204.0,92203.0,0.1]
[1732059868634,0.00174235,92204.0,92203.0,0.10216886]
[1732059869057,0.00174235,92204.0,92203.0,0.39068618]
[1732059869270,0.00174235,92204.0,92201.0,0.1]
[1732059869494,0.00174235,92204.0,92203.0,0.0789]
[1732059870173,0.00174235,92204.0,92203.0,0.46777544]
[1732059874093,0.00174235,92204.0,92203.0,0.5110425]
[1732059874314,0.00174235,92204.0,92203.0,0.22216706]
[1732059879526,0.00174235,92204.0,92203.0,0.51134636]
[1732059879749,0.00174235,92204.0,92203.0,0.51134163]
[1732059880220,0.00174235,92204.0,92203.0,0.22216706]
[1732059880641,0.00174235,92204.0,92203.0,0.51134163]
[1732059881308,0.00174235,92204.0,92203.0,0.14326706]
[1732059881509,0.00174235,92204.0,92203.0,0.43244163]
[1732059882596,0.00174235,92204.0,92203.0,0.14326706]
[1732059883391,0.00174235,92204.0,92203.0,0.43244163]
[1732059885372,0.00174235,92204.0,92194.0,0.0773]
[1732059885373,0.00174235,92204.0,92202.0,0.24109343]
[1732059885579,0.00174235,92204.0,92202.0,0.14466359]
[1732059885781,0.0451,92203.0,92201.0,0.14466359]
[1732059885998,0.0451,92203.0,92188.0,0.28917457]
[1732059885999,0.0451,92203.0,92200.0,0.14466359]
[1732059886208,0.0451,92203.0,92199.0,0.14466359]
[1732059886209,0.0828,92201.0,92199.0,0.14466359]
[1732059886434,0.10906255,92200.0,92197.0,0.14466359]
[1732059886650,0.10906255,92200.0,92191.0,0.14466359]
[1732059886853,0.10906255,92200.0,92194.0,0.14466359]
[1732059887052,0.10906255,92200.0,92195.0,0.14466359]
[1732059887259,0.10906255,92200.0,92192.0,0.14466359]
[1732059887476,0.10906255,92200.0,92190.0,0.14466359]
[1732059888406,0.10906255,92200.0,92183.0,0.0017076]
[1732059888407,0.10906255,92200.0,92189.0,0.14466359]
[1732059888875,0.10906255,92200.0,92191.0,0.14466359]
[1732059889085,0.10906255,92200.0,92183.0,0.0017076]
[1732059889304,0.10906255,92200.0,92190.0,0.14455153]
[1732059889533,0.10906255,92200.0,92183.0,0.0017076]
[1732059889534,0.10906255,92200.0,92189.0,0.14455153]
[1732059889779,0.10906255,92200.0,92188.0,0.14455153]
[1732059889996,0.10906255,92200.0,92186.0,0.14455153]
[1732059890226,0.0828,92198.0,92183.0,0.0017076]
[1732059890434,0.10906255,92197.0,92183.0,0.0017076]
[1732059891851,0.10906255,92197.0,92167.0,0.04418457]
[1732059892070,0.10906255,92197.0,92166.0,0.1]
[1732059892513,0.10906255,92197.0,92165.0,0.24233309]
[1732059892926,0.10906255,92197.0,92176.0,0.0017082]
[1732059896173,0.10906255,92197.0,92177.0,0.0792]
[1732059896429,0.10906255,92197.0,92177.0,0.1259]
[1732059900296,0.10906255,92197.0,92177.0,0.16962795]
[1732059900528,0.10906255,92197.0,92176.0,0.0017082]
[1732059901892,0.1245,92196.0,92176.0,0.0017082]
[1732059902122,0.141486,92177.0,92176.0,0.0017082]
[1732059902349,0.37504855,92177.0,92176.0,0.0017082]
[1732059902563,0.38504855,92177.0,92176.0,0.0017082]
[1732059903276,0.38504855,92177.0,92153.0,0.001707]
[1732059903277,0.1245,92170.0,92153.0,0.001707]
[1732059903497,0.10906255,92169.0,92153.0,0.001707]
[1732059905854,0.15244993,92169.0,92153.0,0.001707]
[1732059906301,0.0751,92168.0,92153.0,0.001707]
[1732059906520,0.10906255,92167.0,92153.0,0.001707]
[1732059909014,0.01,92174.0,92153.0,0.001707]
[1732059909015,0.04465002,92176.0,92154.0,0.08137025]
[1732059909264,0.10906255,92187.0,92154.0,0.08137025]
[1732059909711,0.10906255,92187.0,92154.0,0.0792]
[1732059911067,0.01,92182.0,92154.0,0.0792]
[1732059911287,0.01,92182.0,92153.0,0.001707]
[1732059911288,0.108487,92177.0,92153.0,0.001707]
[1732059911523,0.10849,92174.0,92153.0,0.001707]
[1732059911770,0.15806255,92173.0,92153.0,0.001707]
[1732059911987,0.0753,92172.0,92153.0,0.001707]
[1732059912201,0.10906255,92171.0,92153.0,0.001707]
[1732059913312,0.21755655,92171.0,92153.0,0.001707]
[1732059913747,0.108495,92170.0,92153.0,0.001707]
[1732059913972,0.10906255,92169.0,92153.0,0.001707]
[1732059915438,0.023,92167.0,92153.0,0.001707]
[1732059915657,0.108505,92162.0,92153.0,0.001707]
[1732059915860,0.10906255,92161.0,92153.0,0.001707]
[1732059916704,0.0753,92158.0,92153.0,0.001707]
[1732059916919,0.10906255,92157.0,92153.0,0.001707]
[1732059917353,0.15806255,92157.0,92153.0,0.001707]
[1732059920232,0.10906255,92157.0,92153.0,0.001707]
[1732059921315,0.0753,92171.0,92153.0,0.001707]
[1732059921528,0.04499997,92162.0,92153.0,0.001707]
[1732059921732,0.10906255,92162.0,92153.0,0.001707]
[1732059922183,0.10906255,92161.0,92153.0,0.001707]
[1732059925470,0.04497358,92171.0,92154.0,0.0808]
[1732059925694,0.10906255,92170.0,92154.0,0.0808]
[1732059927516,0.01,92164.0,92141.0,0.1]
[1732059927742,0.01,92161.0,92141.0,0.1]
[1732059928159,0.01,92162.0,92141.0,0.1]
[1732059928385,0.01,92161.0,92141.0,0.1]
[1732059928594,0.01,92161.0,92134.0,0.01]
[1732059928803,0.01,92161.0,92135.0,0.1]
[1732059930334,0.10906255,92160.0,92131.0,0.0454]
[1732059930562,0.01,92159.0,92131.0,0.1454]
[1732059930820,0.10906255,92158.0,92131.0,0.1454]
[1732059931727,0.00212653,92157.0,92131.0,0.1454]
[1732059932178,0.01,92154.0,92131.0,0.1454]
[1732059932477,0.10906255,92153.0,92131.0,0.1454]
[1732059932688,0.11136499,92153.0,92131.0,0.1454]
[1732059933554,0.15946499,92153.0,92130.0,0.0808]
[1732059933751,0.01,92150.0,92130.0,0.0808]
[1732059934003,0.10906255,92149.0,92130.0,0.0808]
[1732059934251,0.1113573,92149.0,92130.0,0.0808]
[1732059934707,0.075,92148.0,92125.0,0.1]
[1732059934910,0.10906255,92147.0,92125.0,0.1]
[1732059935131,0.11135565,92147.0,92125.0,0.1]
[1732059936274,0.12135565,92147.0,92124.0,0.0808]
[1732059937435,0.11135565,92147.0,92124.0,0.0808]
[1732059939086,0.11135565,92147.0,92124.0,0.082508]
[1732059939293,0.01,92146.0,92124.0,0.082508]
[1732059939498,0.10906255,92145.0,92124.0,0.082508]
[1732059939710,0.11134318,92145.0,92124.0,0.082508]
[1732059940571,0.11134318,92145.0,92124.0,0.001708]
[1732059941201,0.01,92144.0,92124.0,0.001708]
[1732059941440,0.10906255,92143.0,92124.0,0.001708]
[1732059941654,0.12134153,92143.0,92124.0,0.001708]
[1732059941879,0.0475,92137.0,92124.0,0.001708]
[1732059942336,0.00227321,92136.0,92124.0,0.001708]
[1732059942825,0.0772,92135.0,92124.0,0.001708]
[1732059943268,0.00215368,92134.0,92124.0,0.001708]
[1732059945262,0.10906255,92133.0,92124.0,0.001708]
[1732059945693,0.00215203,92132.0,92124.0,0.001708]
[1732059945883,0.10906255,92131.0,92124.0,0.001708]
[1732059946137,0.01,92128.0,92124.0,0.001708]
[1732059946347,0.01,92129.0,92124.0,0.001708]
[1732059946559,0.00211595,92127.0,92124.0,0.001708]
[1732059946775,0.00211678,92128.0,92124.0,0.001708]
[1732059946991,0.00211513,92126.0,92124.0,0.001708]
[1732059947236,0.11906255,92129.0,92124.0,0.001708]
[1732059947468,0.0021143,92125.0,92124.0,0.001708]
[1732059947709,0.00211678,92128.0,92124.0,0.001708]
[1732059947918,0.0021143,92125.0,92124.0,0.001708]
[1732059948136,0.11906255,92129.0,92124.0,0.001708]
[1732059948361,0.0021143,92125.0,92124.0,0.001708]
[1732059948591,0.11906255,92129.0,92124.0,0.001708]
[1732059948798,0.0021143,92125.0,92124.0,0.001708]
[1732059949037,0.11906255,92129.0,92124.0,0.001708]
[1732059949259,0.0021143,92125.0,92124.0,0.001708]
[1732059949697,0.11906255,92129.0,92124.0,0.001708]
[1732059949977,0.0021143,92125.0,92124.0,0.001708]
[1732059950178,0.11906255,92129.0,92124.0,0.001708]
[1732059950386,0.0021143,92125.0,92124.0,0.001708]
[1732059950602,0.11906255,92129.0,92124.0,0.001708]
[1732059950806,0.0021143,92125.0,92124.0,0.001708]
[1732059951017,0.11906255,92129.0,92124.0,0.001708]
[1732059951234,0.0021143,92125.0,92124.0,0.001708]
[1732059951448,0.11906255,92129.0,92124.0,0.001708]
[1732059951862,0.00211678,92128.0,92124.0,0.001708]
[1732059954247,0.01,92137.0,92124.0,0.001708]
[1732059954456,0.11118345,92136.0,92124.0,0.001708]
[1732059958061,0.01,92135.0,92124.0,0.001708]
[1732059958212,0.12118989,92134.0,92124.0,0.001708]
[1732059958414,0.01,92129.0,92124.0,0.001708]
[1732059958628,0.0021224,92128.0,92124.0,0.001708]
[1732059960448,0.10906255,92134.0,92124.0,0.001708]
[1732059960718,0.00227975,92133.0,92124.0,0.001708]
[1732059960884,0.1113423,92133.0,92124.0,0.001708]
[1732059962184,0.01,92129.0,92124.0,0.001708]
[1732059962551,0.00227511,92128.0,92124.0,0.001708]
[1732059963002,0.10906255,92133.0,92124.0,0.001708]
[1732059963226,0.01,92129.0,92124.0,0.001708]
[1732059963433,0.01,92131.0,92124.0,0.001708]
[1732059963641,0.10906255,92133.0,92124.0,0.001708]
[1732059963809,0.01,92129.0,92124.0,0.001708]
[1732059964025,0.00227511,92128.0,92124.0,0.001708]
[1732059964242,0.10906255,92133.0,92124.0,0.001708]
[1732059964422,0.00227882,92132.0,92124.0,0.001708]
[1732059964637,0.01,92129.0,92124.0,0.001708]
[1732059964835,0.00227511,92128.0,92124.0,0.001708]
[1732059965093,0.01,92129.0,92124.0,0.001708]
[1732059965299,0.00227418,92127.0,92124.0,0.001708]
[1732059965492,0.00227511,92128.0,92124.0,0.001708]
[1732059965659,0.00227325,92126.0,92124.0,0.001708]
[1732059965871,0.01,92129.0,92124.0,0.001708]
[1732059966171,0.10906255,92133.0,92124.0,0.001708]
[1732059966350,0.00227511,92128.0,92124.0,0.001708]
[1732059966563,0.10906255,92133.0,92124.0,0.001708]
[1732059966984,0.00227882,92132.0,92124.0,0.001708]
[1732059970129,0.10906255,92131.0,92124.0,0.001708]
[1732059970317,0.01,92129.0,92124.0,0.001708]
[1732059970586,0.10906255,92128.0,92124.0,0.001708]
[1732059970811,0.1113274,92128.0,92124.0,0.001708]
[1732059973469,0.00226485,92128.0,92124.0,0.001708]
[1732059973896,0.01,92129.0,92124.0,0.001708]
[1732059975466,0.1113274,92128.0,92124.0,0.001708]
[1732059981036,0.00226485,92128.0,92125.0,0.1313]
[1732059981277,0.00226485,92128.0,92126.0,0.14447486]
[1732059981492,0.000854,92134.0,92127.0,0.14447486]
[1732059981742,0.000854,92134.0,92131.0,0.14447217]
[1732059981945,0.000854,92134.0,92133.0,0.22667217]
[1732059982157,0.000854,92134.0,92133.0,0.0822]
[1732059982806,0.000854,92134.0,92133.0,0.32299144]
[1732059983244,0.000854,92134.0,92133.0,0.0822]
[1732059984755,0.000854,92134.0,92133.0,0.32235849]
[1732059984984,0.000854,92161.0,92134.0,0.047]
[1732059985187,0.10906255,92160.0,92142.0,0.1440656]
[1732059985392,0.10906255,92160.0,92143.0,0.1440656]
[1732059985633,0.00228785,92159.0,92143.0,0.1440656]
[1732059985838,0.10906255,92158.0,92142.0,0.00217032]
[1732059986287,0.002286,92157.0,92142.0,0.00217032]
[1732059986509,0.11134855,92157.0,92142.0,0.00217032]
[1732059987154,0.11134855,92157.0,92143.0,0.081]
[1732059987420,0.10906255,92157.0,92143.0,0.081]
[1732059987620,0.00228507,92156.0,92143.0,0.081]
[1732059989425,0.00228507,92156.0,92137.0,0.19208747]
[1732059989426,0.01,92152.0,92137.0,0.14389607]
[1732059989631,0.10906255,92151.0,92134.0,0.1]
[1732059989863,0.11136295,92151.0,92134.0,0.1]
[1732059990319,0.11136295,92151.0,92134.0,0.24389607]
[1732059990532,0.11136295,92151.0,92134.0,0.1]